[Event "*** Titled Tuesday Blitz"]
[Site "Chess.com"]
[Date "2021.02.02"]
[Round "3"]
[White "Milchone1"]
[Black "Kale36"]
[Result "1-0"]
[WhiteElo "2509"]
[BlackElo "2289"]
[TimeControl "180+1"]
[EndTime "10:29:30 PST"]
[Termination "Milchone1 won by resignation"]

1. Nf3 {[%clk 0:03:00.9]} 1... Nc6 {[%clk 0:02:59.4]} 2. d4 {[%clk 0:02:59.3]}
2... d6 {[%clk 0:02:59]} 3. c4 {[%clk 0:02:59.2]} 3... Bg4 {[%clk 0:02:58.2]} 4.
d5 {[%clk 0:02:58.9]} 4... Ne5 {[%clk 0:02:52.1]} 5. Nxe5 {[%clk 0:02:58.4]}
5... dxe5 {[%clk 0:02:52.4]} 6. h3 {[%clk 0:02:57.4]} 6... Bd7 {[%clk
0:02:52.1]} 7. e4 {[%clk 0:02:57]} 7... g6 {[%clk 0:02:51.4]} 8. Nc3 {[%clk
0:02:56]} 8... Bg7 {[%clk 0:02:51.5]} 9. Bd3 {[%clk 0:02:56.5]} 9... Nf6 {[%clk
0:02:51.5]} 10. O-O {[%clk 0:02:56.2]} 10... O-O {[%clk 0:02:51.7]} 11. g4
{[%clk 0:02:56.3]} 11... a5 {[%clk 0:02:49.5]} 12. Be3 {[%clk 0:02:56]} 12... b6
{[%clk 0:02:49.4]} 13. f3 {[%clk 0:02:54.1]} 13... Ne8 {[%clk 0:02:49.4]} 14.
Kg2 {[%clk 0:02:49.3]} 14... Nd6 {[%clk 0:02:49.4]} 15. b3 {[%clk 0:02:48.1]}
15... f5 {[%clk 0:02:48.9]} 16. Rc1 {[%clk 0:02:43.5]} 16... f4 {[%clk
0:02:32.2]} 17. Bf2 {[%clk 0:02:43.5]} 17... h5 {[%clk 0:02:19.7]} 18. Rh1
{[%clk 0:02:42.8]} 18... g5 {[%clk 0:02:14.1]} 19. a3 {[%clk 0:02:37.7]} 19...
h4 {[%clk 0:02:13.4]} 20. Qe2 {[%clk 0:02:35.3]} 20... e6 {[%clk 0:01:57.7]} 21.
b4 {[%clk 0:02:33.1]} 21... Rf6 {[%clk 0:01:55.6]} 22. c5 {[%clk 0:02:31.2]}
22... axb4 {[%clk 0:01:53.7]} 23. axb4 {[%clk 0:02:30.8]} 23... bxc5 {[%clk
0:01:52.5]} 24. bxc5 {[%clk 0:02:30.5]} 24... Nf7 {[%clk 0:01:53.2]} 25. c6
{[%clk 0:02:25.3]} 25... Bc8 {[%clk 0:01:49.1]} 26. Ra1 {[%clk 0:02:24.7]} 26...
Rxa1 {[%clk 0:01:41.1]} 27. Rxa1 {[%clk 0:02:25.6]} 27... exd5 {[%clk
0:01:40.5]} 28. exd5 {[%clk 0:02:23]} 28... Nd6 {[%clk 0:01:30.9]} 29. Be4
{[%clk 0:02:19.3]} 29... Bf8 {[%clk 0:01:25.6]} 30. Ra8 {[%clk 0:02:17.7]} 30...
Be7 {[%clk 0:01:19.9]} 31. Nb5 {[%clk 0:02:13.3]} 31... Nxb5 {[%clk 0:01:18.6]}
32. Qxb5 {[%clk 0:02:14.2]} 32... Rf8 {[%clk 0:01:18.6]} 33. Bf5 {[%clk
0:02:06.1]} 33... Rxf5 {[%clk 0:01:07.7]} 34. gxf5 {[%clk 0:02:07]} 34... g4
{[%clk 0:00:55.8]} 35. hxg4 {[%clk 0:02:05.9]} 35... h3+ {[%clk 0:00:47.8]} 36.
Kh2 {[%clk 0:02:01.2]} 36... Kg7 {[%clk 0:00:48.1]} 37. Qb8 {[%clk 0:02:00]}
37... Bh4 {[%clk 0:00:44.6]} 38. Qxc8 {[%clk 0:01:54.9]} 38... Bg3+ {[%clk
0:00:44.2]} 39. Bxg3 {[%clk 0:01:52.2]} 39... fxg3+ {[%clk 0:00:45.1]} 40. Kxg3
{[%clk 0:01:52.6]} 40... Qd6 {[%clk 0:00:37.2]} 41. Qh8+ {[%clk 0:01:50.4]}
41... Kf7 {[%clk 0:00:35.7]} 42. Qh7+ {[%clk 0:01:49.4]} 1-0

[Event "*** Titled Tuesday Blitz"]
[Site "Chess.com"]
[Date "2021.02.02"]
[Round "3"]
[White "HackingKid98"]
[Black "BlueWizzard"]
[Result "0-1"]
[WhiteElo "2449"]
[BlackElo "2769"]
[TimeControl "180+1"]
[EndTime "10:29:36 PST"]
[Termination "BlueWizzard won by resignation"]

1. d4 {[%clk 0:03:00.9]} 1... a6 {[%clk 0:03:00.9]} 2. g3 {[%clk 0:02:57.1]}
2... c5 {[%clk 0:03:00.5]} 3. Bg2 {[%clk 0:02:57.3]} 3... cxd4 {[%clk
0:03:00.7]} 4. Nf3 {[%clk 0:02:57]} 4... e5 {[%clk 0:03:00.4]} 5. O-O {[%clk
0:02:57.2]} 5... Nc6 {[%clk 0:03:00.4]} 6. c3 {[%clk 0:02:57.3]} 6... d5 {[%clk
0:02:59.3]} 7. cxd4 {[%clk 0:02:56.5]} 7... e4 {[%clk 0:03:00]} 8. Ne5 {[%clk
0:02:45.1]} 8... Bd6 {[%clk 0:03:00.1]} 9. Nxc6 {[%clk 0:02:42.4]} 9... bxc6
{[%clk 0:03:01]} 10. Nc3 {[%clk 0:02:38.8]} 10... Ne7 {[%clk 0:03:00.3]} 11. Bg5
{[%clk 0:02:23.5]} 11... O-O {[%clk 0:02:58.1]} 12. Rc1 {[%clk 0:02:21.4]} 12...
f6 {[%clk 0:02:55.2]} 13. Bd2 {[%clk 0:02:19.7]} 13... Ng6 {[%clk 0:02:51.6]}
14. Na4 {[%clk 0:02:18.5]} 14... Bd7 {[%clk 0:02:51.8]} 15. Nc5 {[%clk 0:02:18]}
15... f5 {[%clk 0:02:46.8]} 16. Qa4 {[%clk 0:02:12.5]} 16... Bxc5 {[%clk
0:02:44.2]} 17. Rxc5 {[%clk 0:02:13.4]} 17... f4 {[%clk 0:02:44.8]} 18. Rfc1
{[%clk 0:02:09.8]} 18... Qf6 {[%clk 0:02:41.8]} 19. Be1 {[%clk 0:02:08.9]} 19...
e3 {[%clk 0:02:35.7]} 20. Bf3 {[%clk 0:01:43.5]} 20... Kh8 {[%clk 0:02:30.2]}
21. fxe3 {[%clk 0:01:38.8]} 21... fxe3 {[%clk 0:02:29.2]} 22. Qa3 {[%clk
0:01:37.3]} 22... Qg5 {[%clk 0:02:17.4]} 23. R1c3 {[%clk 0:01:27.4]} 23... Rae8
{[%clk 0:02:15.1]} 24. Qxa6 {[%clk 0:01:12.6]} 24... Nh4 {[%clk 0:02:10.3]} 25.
Qd3 {[%clk 0:00:42.7]} 25... Bh3 {[%clk 0:01:48.8]} 26. Rc1 {[%clk 0:00:32.5]}
26... Nxf3+ {[%clk 0:01:35.3]} 27. exf3 {[%clk 0:00:33.4]} 27... Rxf3 {[%clk
0:01:35.5]} 28. Ba5 {[%clk 0:00:29.3]} 28... Ref8 {[%clk 0:01:34.3]} 29. Rxc6
{[%clk 0:00:26.6]} 29... Rxg3+ {[%clk 0:01:33.8]} 30. Kh1 {[%clk 0:00:20.5]}
30... Bg2+ {[%clk 0:01:33.1]} 31. Kg1 {[%clk 0:00:20.6]} 31... Be4+ {[%clk
0:01:34]} 0-1

[Event "*** Titled Tuesday Blitz"]
[Site "Chess.com"]
[Date "2021.02.02"]
[Round "3"]
[White "Agoking701"]
[Black "akanga001"]
[Result "1-0"]
[WhiteElo "2297"]
[BlackElo "1987"]
[TimeControl "180+1"]
[EndTime "10:29:39 PST"]
[Termination "Agoking701 won on time"]

1. b3 {[%clk 0:03:00.9]} 1... Nf6 {[%clk 0:02:56.6]} 2. Bb2 {[%clk 0:03:01.8]}
2... c5 {[%clk 0:02:53.6]} 3. e3 {[%clk 0:03:01.9]} 3... d5 {[%clk 0:02:52.6]}
4. Nf3 {[%clk 0:03:00.3]} 4... Nc6 {[%clk 0:02:50.7]} 5. Bb5 {[%clk 0:02:57.5]}
5... a6 {[%clk 0:02:49.5]} 6. Bxc6+ {[%clk 0:02:57.3]} 6... bxc6 {[%clk
0:02:50.4]} 7. Ne5 {[%clk 0:02:56.6]} 7... Qc7 {[%clk 0:02:49.5]} 8. d3 {[%clk
0:02:50.9]} 8... a5 {[%clk 0:02:48.8]} 9. a4 {[%clk 0:02:46.6]} 9... g6 {[%clk
0:02:47.1]} 10. Nd2 {[%clk 0:02:35.1]} 10... Bg7 {[%clk 0:02:44.8]} 11. f4
{[%clk 0:02:35]} 11... O-O {[%clk 0:02:37.2]} 12. Ndf3 {[%clk 0:02:34.2]} 12...
Rb8 {[%clk 0:02:30.7]} 13. Qd2 {[%clk 0:02:28.5]} 13... c4 {[%clk 0:02:26.1]}
14. dxc4 {[%clk 0:02:17.2]} 14... dxc4 {[%clk 0:02:20.7]} 15. Nxc4 {[%clk
0:02:15.1]} 15... Rd8 {[%clk 0:02:18]} 16. Qxa5 {[%clk 0:02:10.6]} 16... Qd7
{[%clk 0:02:04.7]} 17. Nfe5 {[%clk 0:01:40.7]} 17... Qe6 {[%clk 0:01:56.4]} 18.
Qxd8+ {[%clk 0:01:37.9]} 18... Bf8 {[%clk 0:01:50.1]} 19. O-O {[%clk 0:01:29.5]}
19... Ne4 {[%clk 0:01:43]} 20. Rad1 {[%clk 0:01:21.2]} 1-0

[Event "*** Titled Tuesday Blitz"]
[Site "Chess.com"]
[Date "2021.02.02"]
[Round "3"]
[White "GMKrikor"]
[Black "Grandmaster2B"]
[Result "1-0"]
[WhiteElo "2817"]
[BlackElo "2601"]
[TimeControl "180+1"]
[EndTime "10:29:40 PST"]
[Termination "GMKrikor won by resignation"]

1. Nf3 {[%clk 0:03:00.9]} 1... Nf6 {[%clk 0:02:58.7]} 2. c4 {[%clk 0:03:00.6]}
2... e6 {[%clk 0:02:54.3]} 3. Nc3 {[%clk 0:03:00.6]} 3... a6 {[%clk 0:02:48.8]}
4. b3 {[%clk 0:02:45.3]} 4... d5 {[%clk 0:02:48.1]} 5. e3 {[%clk 0:02:44.9]}
5... Be7 {[%clk 0:02:48.2]} 6. Bb2 {[%clk 0:02:44.4]} 6... O-O {[%clk
0:02:48.8]} 7. Qc2 {[%clk 0:02:30.7]} 7... c5 {[%clk 0:02:20.7]} 8. cxd5 {[%clk
0:02:23.7]} 8... Nxd5 {[%clk 0:02:19.3]} 9. Nxd5 {[%clk 0:02:23.9]} 9... Qxd5
{[%clk 0:02:16.4]} 10. Bc4 {[%clk 0:02:23.8]} 10... Qd8 {[%clk 0:02:13.7]} 11.
h4 {[%clk 0:02:19.6]} 11... Nc6 {[%clk 0:01:54.6]} 12. Ng5 {[%clk 0:02:19.4]}
12... g6 {[%clk 0:01:49.8]} 13. Nxh7 {[%clk 0:02:02.5]} 13... Kxh7 {[%clk
0:01:43]} 14. h5 {[%clk 0:02:02.1]} 14... f5 {[%clk 0:01:37.1]} 15. hxg6+ {[%clk
0:01:58.3]} 15... Kxg6 {[%clk 0:01:37.3]} 16. g4 {[%clk 0:01:27.2]} 16... Bf6
{[%clk 0:01:29.8]} 17. gxf5+ {[%clk 0:01:25]} 17... exf5 {[%clk 0:01:30.7]} 18.
O-O-O {[%clk 0:01:25.2]} 18... Bh4 {[%clk 0:00:53.9]} 19. Rdg1+ {[%clk 0:01:16]}
19... Kh6 {[%clk 0:00:51.7]} 20. Qc3 {[%clk 0:01:04.6]} 20... Nd4 {[%clk
0:00:44.2]} 21. exd4 {[%clk 0:01:02.8]} 21... cxd4 {[%clk 0:00:43.7]} 22. Qxd4
{[%clk 0:00:47.1]} 22... Qxd4 {[%clk 0:00:43]} 23. Bxd4 {[%clk 0:00:48]} 23...
Kh5 {[%clk 0:00:39.1]} 24. f4 {[%clk 0:00:48.2]} 1-0

[Event "*** Titled Tuesday Blitz"]
[Site "Chess.com"]
[Date "2021.02.02"]
[Round "3"]
[White "ohajek96"]
[Black "PriSachu"]
[Result "0-1"]
[WhiteElo "2245"]
[BlackElo "2478"]
[TimeControl "180+1"]
[EndTime "10:29:41 PST"]
[Termination "PriSachu won on time"]

1. e4 {[%clk 0:03:00.9]} 1... e5 {[%clk 0:02:59.6]} 2. Nf3 {[%clk 0:03:00.4]}
2... Nc6 {[%clk 0:02:59.1]} 3. Bb5 {[%clk 0:03:00.1]} 3... a6 {[%clk 0:02:59]}
4. Ba4 {[%clk 0:02:59.5]} 4... Nf6 {[%clk 0:02:58.6]} 5. O-O {[%clk 0:02:58.6]}
5... Bc5 {[%clk 0:02:57.4]} 6. c3 {[%clk 0:02:47.9]} 6... O-O {[%clk 0:02:57.1]}
7. d4 {[%clk 0:02:39.6]} 7... Ba7 {[%clk 0:02:57]} 8. Bxc6 {[%clk 0:02:27.7]}
8... dxc6 {[%clk 0:02:55.8]} 9. Nxe5 {[%clk 0:02:28.6]} 9... Nxe4 {[%clk
0:02:55.6]} 10. Nd2 {[%clk 0:02:25.3]} 10... Nxd2 {[%clk 0:02:53.7]} 11. Bxd2
{[%clk 0:02:22.5]} 11... c5 {[%clk 0:02:53.8]} 12. Be3 {[%clk 0:02:17.4]} 12...
cxd4 {[%clk 0:02:50.5]} 13. cxd4 {[%clk 0:02:12.1]} 13... Be6 {[%clk 0:02:49.3]}
14. Qf3 {[%clk 0:02:05.7]} 14... Qd5 {[%clk 0:02:48.1]} 15. Qg3 {[%clk
0:02:00.6]} 15... Bxd4 {[%clk 0:02:35.4]} 16. Bxd4 {[%clk 0:01:26.1]} 16... Qxd4
{[%clk 0:02:33.6]} 17. Rad1 {[%clk 0:01:22.4]} 17... Qxb2 {[%clk 0:02:30.4]} 18.
Rc1 {[%clk 0:01:05.2]} 18... c6 {[%clk 0:02:23.7]} 19. Rb1 {[%clk 0:00:58.6]}
19... Qxa2 {[%clk 0:02:21.2]} 20. Rxb7 {[%clk 0:00:58]} 20... Qd5 {[%clk
0:02:03.4]} 21. h4 {[%clk 0:00:51.2]} 21... a5 {[%clk 0:01:57.7]} 22. h5 {[%clk
0:00:46.3]} 22... h6 {[%clk 0:01:55.2]} 23. Rc1 {[%clk 0:00:34.9]} 23... a4
{[%clk 0:01:51]} 24. Rxc6 {[%clk 0:00:28]} 24... a3 {[%clk 0:01:48.6]} 25. Rcc7
{[%clk 0:00:21.8]} 25... a2 {[%clk 0:01:46.4]} 26. Rxf7 {[%clk 0:00:07.9]} 26...
a1=Q+ {[%clk 0:01:45.1]} 27. Kh2 {[%clk 0:00:06.7]} 27... Qdxe5 {[%clk
0:01:35.2]} 28. Rxg7+ {[%clk 0:00:04.3]} 28... Qxg7 {[%clk 0:01:35.1]} 0-1

[Event "*** Titled Tuesday Blitz"]
[Site "Chess.com"]
[Date "2021.02.02"]
[Round "3"]
[White "Tenamu"]
[Black "NateSolon"]
[Result "1-0"]
[WhiteElo "2387"]
[BlackElo "2533"]
[TimeControl "180+1"]
[EndTime "10:29:48 PST"]
[Termination "Tenamu won by resignation"]

1. d4 {[%clk 0:03:00.9]} 1... d5 {[%clk 0:02:58.8]} 2. Nc3 {[%clk 0:03:01.2]}
2... Nf6 {[%clk 0:02:58.7]} 3. Bf4 {[%clk 0:03:01.2]} 3... e6 {[%clk 0:02:58.9]}
4. Nb5 {[%clk 0:03:00.9]} 4... Na6 {[%clk 0:02:59.2]} 5. e3 {[%clk 0:03:01]}
5... Be7 {[%clk 0:02:59.2]} 6. Nf3 {[%clk 0:03:00.2]} 6... O-O {[%clk
0:02:59.1]} 7. Be2 {[%clk 0:02:59.1]} 7... c6 {[%clk 0:02:59.3]} 8. Nc3 {[%clk
0:02:59]} 8... c5 {[%clk 0:02:59.6]} 9. Bxa6 {[%clk 0:02:58.5]} 9... bxa6 {[%clk
0:02:59.8]} 10. O-O {[%clk 0:02:59.2]} 10... Nh5 {[%clk 0:02:48.9]} 11. Be5
{[%clk 0:02:56.4]} 11... f6 {[%clk 0:02:41.1]} 12. Bg3 {[%clk 0:02:56.1]} 12...
Nxg3 {[%clk 0:02:40.8]} 13. hxg3 {[%clk 0:02:57]} 13... Rb8 {[%clk 0:02:41.1]}
14. Rb1 {[%clk 0:02:56.3]} 14... Qa5 {[%clk 0:02:36.1]} 15. Re1 {[%clk
0:02:45.3]} 15... c4 {[%clk 0:02:33.3]} 16. a3 {[%clk 0:02:35.4]} 16... Bd7
{[%clk 0:02:25.2]} 17. Qd2 {[%clk 0:02:33.4]} 17... Rb7 {[%clk 0:02:15.7]} 18.
e4 {[%clk 0:02:31.3]} 18... Be8 {[%clk 0:01:45.8]} 19. exd5 {[%clk 0:02:26.6]}
19... exd5 {[%clk 0:01:42.7]} 20. Nh4 {[%clk 0:02:18.1]} 20... Bg6 {[%clk
0:01:32.4]} 21. Nxg6 {[%clk 0:02:14.6]} 21... hxg6 {[%clk 0:01:33.3]} 22. Qe3
{[%clk 0:02:14.8]} 22... Rd8 {[%clk 0:01:17.4]} 23. Qf3 {[%clk 0:02:08]} 23...
Bf8 {[%clk 0:01:12.6]} 24. Qg4 {[%clk 0:01:57.9]} 24... Qb6 {[%clk 0:01:05.1]}
25. Rbd1 {[%clk 0:01:51.4]} 25... f5 {[%clk 0:00:56]} 26. Qf3 {[%clk 0:01:49.3]}
26... Rbd7 {[%clk 0:00:48.2]} 27. Re5 {[%clk 0:01:44.2]} 27... Qxb2 {[%clk
0:00:48.1]} 28. Nxd5 {[%clk 0:01:42.3]} 28... Qxc2 {[%clk 0:00:45.8]} 29. Nf4
{[%clk 0:01:40]} 29... Rxd4 {[%clk 0:00:41.6]} 30. Rxd4 {[%clk 0:01:40.9]} 30...
Rxd4 {[%clk 0:00:42.5]} 31. Kh2 {[%clk 0:01:37.7]} 31... Rd2 {[%clk 0:00:35]}
32. Nxg6 {[%clk 0:01:32.7]} 32... Bd6 {[%clk 0:00:34.6]} 33. Rxf5 {[%clk
0:01:22.6]} 33... Qd3 {[%clk 0:00:26.8]} 34. Qh5 {[%clk 0:01:20.3]} 1-0

[Event "*** Titled Tuesday Blitz"]
[Site "Chess.com"]
[Date "2021.02.02"]
[Round "3"]
[White "Stronger1799"]
[Black "SantoBlue"]
[Result "0-1"]
[WhiteElo "2609"]
[BlackElo "2830"]
[TimeControl "180+1"]
[EndTime "10:29:49 PST"]
[Termination "SantoBlue won by checkmate"]

1. e4 {[%clk 0:03:00.9]} 1... c5 {[%clk 0:02:59]} 2. Nf3 {[%clk 0:03:00.3]} 2...
Nc6 {[%clk 0:02:59]} 3. d4 {[%clk 0:03:00.7]} 3... cxd4 {[%clk 0:02:59.6]} 4.
Nxd4 {[%clk 0:03:01.6]} 4... Nf6 {[%clk 0:03:00.4]} 5. Nc3 {[%clk 0:03:02.2]}
5... d6 {[%clk 0:03:01]} 6. f3 {[%clk 0:03:02]} 6... e5 {[%clk 0:02:58]} 7. Nb3
{[%clk 0:03:02.5]} 7... Be7 {[%clk 0:02:58.2]} 8. Be3 {[%clk 0:03:02.9]} 8...
O-O {[%clk 0:02:58.3]} 9. Qd2 {[%clk 0:03:01.9]} 9... Be6 {[%clk 0:02:58.4]} 10.
O-O-O {[%clk 0:03:01.8]} 10... a5 {[%clk 0:02:58.4]} 11. a4 {[%clk 0:03:02]}
11... Nb4 {[%clk 0:02:55.4]} 12. g4 {[%clk 0:03:02.2]} 12... Nd7 {[%clk
0:02:47.7]} 13. Kb1 {[%clk 0:02:57.6]} 13... Qc8 {[%clk 0:02:41.3]} 14. g5
{[%clk 0:02:55.6]} 14... Nc5 {[%clk 0:02:41.2]} 15. Nxc5 {[%clk 0:02:48.9]}
15... dxc5 {[%clk 0:02:41.1]} 16. Qg2 {[%clk 0:02:37.7]} 16... Rd8 {[%clk
0:02:20.5]} 17. Rxd8+ {[%clk 0:02:27.3]} 17... Qxd8 {[%clk 0:02:20.2]} 18. h4
{[%clk 0:02:28.2]} 18... Nc6 {[%clk 0:02:13.7]} 19. h5 {[%clk 0:02:23.2]} 19...
Nd4 {[%clk 0:02:14]} 20. g6 {[%clk 0:02:22.2]} 20... Kh8 {[%clk 0:01:38.6]} 21.
h6 {[%clk 0:02:13.1]} 21... fxg6 {[%clk 0:01:38]} 22. hxg7+ {[%clk 0:02:09.8]}
22... Kxg7 {[%clk 0:01:38.6]} 23. Qh2 {[%clk 0:02:10.1]} 23... h5 {[%clk
0:01:35.3]} 24. Qxe5+ {[%clk 0:02:08.9]} 24... Bf6 {[%clk 0:01:35.6]} 25. Qxc5
{[%clk 0:02:08.2]} 25... Nxf3 {[%clk 0:01:32.9]} 26. Be2 {[%clk 0:01:16.7]}
26... Rc8 {[%clk 0:01:32.6]} 27. Qb5 {[%clk 0:01:09.8]} 27... Nd2+ {[%clk
0:01:32.5]} 28. Bxd2 {[%clk 0:00:45.1]} 28... Qxd2 {[%clk 0:01:32.2]} 29. Bxh5
{[%clk 0:00:44.8]} 29... Rxc3 {[%clk 0:01:13.3]} 30. Qxb7+ {[%clk 0:00:39.8]}
30... Bf7 {[%clk 0:01:12.9]} 31. Bxg6 {[%clk 0:00:33.9]} 31... Qxc2+ {[%clk
0:01:10.2]} 32. Ka1 {[%clk 0:00:29.8]} 32... Ra3# {[%clk 0:01:11.1]} 0-1

[Event "*** Titled Tuesday Blitz"]
[Site "Chess.com"]
[Date "2021.02.02"]
[Round "3"]
[White "kobemagic"]
[Black "TST2014"]
[Result "0-1"]
[WhiteElo "2364"]
[BlackElo "2547"]
[TimeControl "180+1"]
[EndTime "10:29:49 PST"]
[Termination "TST2014 won by resignation"]

1. c4 {[%clk 0:03:00.2]} 1... Nf6 {[%clk 0:02:55.8]} 2. g3 {[%clk 0:03:01.1]}
2... c6 {[%clk 0:02:52.2]} 3. Bg2 {[%clk 0:03:01.6]} 3... d5 {[%clk 0:02:52.2]}
4. Nf3 {[%clk 0:03:01.6]} 4... Bg4 {[%clk 0:02:48.3]} 5. Ne5 {[%clk 0:02:59.8]}
5... Be6 {[%clk 0:02:46.7]} 6. cxd5 {[%clk 0:02:54.1]} 6... Bxd5 {[%clk
0:02:46.5]} 7. Nf3 {[%clk 0:02:54.7]} 7... Nbd7 {[%clk 0:02:34.2]} 8. Nc3 {[%clk
0:02:52.2]} 8... Bc4 {[%clk 0:02:31]} 9. d3 {[%clk 0:02:51.5]} 9... Ba6 {[%clk
0:02:30.6]} 10. O-O {[%clk 0:02:51.8]} 10... e5 {[%clk 0:02:30]} 11. Qa4 {[%clk
0:02:38.3]} 11... Be7 {[%clk 0:02:26.3]} 12. Ng5 {[%clk 0:02:37.5]} 12... O-O
{[%clk 0:02:21.3]} 13. Be3 {[%clk 0:02:20]} 13... h6 {[%clk 0:02:15.9]} 14. Nge4
{[%clk 0:02:19.3]} 14... Nd5 {[%clk 0:02:15.7]} 15. Nxd5 {[%clk 0:02:12.6]}
15... cxd5 {[%clk 0:02:15.5]} 16. Nc3 {[%clk 0:01:31]} 16... d4 {[%clk
0:02:12.8]} 17. Bxd4 {[%clk 0:01:29.6]} 17... exd4 {[%clk 0:02:07.9]} 18. Qxd4
{[%clk 0:01:30.5]} 18... Bf6 {[%clk 0:02:05.2]} 19. Qg4 {[%clk 0:01:18]} 19...
Ne5 {[%clk 0:02:00.7]} 20. Qf5 {[%clk 0:01:16.5]} 20... Qd7 {[%clk 0:01:53.2]}
21. Qh5 {[%clk 0:01:13.6]} 21... Qg4 {[%clk 0:01:46.8]} 22. Qxg4 {[%clk
0:01:05.9]} 22... Nxg4 {[%clk 0:01:47.7]} 23. h3 {[%clk 0:01:06.3]} 23... Ne5
{[%clk 0:01:46.3]} 24. Ne4 {[%clk 0:01:06.8]} 24... Be7 {[%clk 0:01:45.7]} 25.
a3 {[%clk 0:01:03.4]} 25... Rac8 {[%clk 0:01:45.2]} 26. Rac1 {[%clk 0:01:01.2]}
26... Nc6 {[%clk 0:01:29.3]} 27. Rfe1 {[%clk 0:00:16.2]} 27... Nd4 {[%clk
0:01:26.6]} 28. Rxc8 {[%clk 0:00:14.1]} 28... Rxc8 {[%clk 0:01:25.3]} 29. Nc3
{[%clk 0:00:14.7]} 29... Bxa3 {[%clk 0:01:21.4]} 30. b3 {[%clk 0:00:13.9]} 0-1

[Event "*** Titled Tuesday Blitz"]
[Site "Chess.com"]
[Date "2021.02.02"]
[Round "3"]
[White "dennisodessa"]
[Black "andy_rekt"]
[Result "1-0"]
[WhiteElo "2458"]
[BlackElo "2238"]
[TimeControl "180+1"]
[EndTime "10:29:49 PST"]
[Termination "dennisodessa won by checkmate"]

1. d4 {[%clk 0:03:00]} 1... f5 {[%clk 0:02:57.2]} 2. c4 {[%clk 0:03:00.9]} 2...
Nf6 {[%clk 0:02:57.4]} 3. g3 {[%clk 0:03:01]} 3... g6 {[%clk 0:02:56.7]} 4. Bg2
{[%clk 0:03:01.9]} 4... Bg7 {[%clk 0:02:56.8]} 5. Nf3 {[%clk 0:03:02.4]} 5...
O-O {[%clk 0:02:55.6]} 6. O-O {[%clk 0:03:02.6]} 6... d6 {[%clk 0:02:56.2]} 7.
Nc3 {[%clk 0:03:03.5]} 7... Nc6 {[%clk 0:02:55.8]} 8. Qb3 {[%clk 0:03:03.7]}
8... Kh8 {[%clk 0:02:54.6]} 9. Rd1 {[%clk 0:03:03.8]} 9... a6 {[%clk 0:02:52.5]}
10. d5 {[%clk 0:02:57.6]} 10... Na5 {[%clk 0:02:31.7]} 11. Qa4 {[%clk
0:02:56.4]} 11... c5 {[%clk 0:02:31.2]} 12. dxc6 {[%clk 0:02:52.3]} 12... Nxc6
{[%clk 0:02:29.5]} 13. Nd4 {[%clk 0:02:52.8]} 13... Nxd4 {[%clk 0:02:21.6]} 14.
Rxd4 {[%clk 0:02:53.7]} 14... Ne4 {[%clk 0:01:55.5]} 15. Rd3 {[%clk 0:02:53.1]}
15... Nc5 {[%clk 0:01:53]} 16. Qc2 {[%clk 0:02:50.4]} 16... Nxd3 {[%clk
0:01:53.2]} 17. Qxd3 {[%clk 0:02:51]} 17... Qc7 {[%clk 0:01:52.9]} 18. Nd5
{[%clk 0:02:49.9]} 18... Qd8 {[%clk 0:01:52.7]} 19. Bg5 {[%clk 0:02:49]} 19...
Rf7 {[%clk 0:01:47.6]} 20. Rd1 {[%clk 0:02:43.8]} 20... Be6 {[%clk 0:01:45.8]}
21. Nf4 {[%clk 0:02:42]} 21... Bc8 {[%clk 0:00:56.9]} 22. b3 {[%clk 0:02:30.1]}
22... Rb8 {[%clk 0:00:47.9]} 23. c5 {[%clk 0:02:30]} 23... h6 {[%clk 0:00:38.3]}
24. Bd5 {[%clk 0:02:26.3]} 24... Kg8 {[%clk 0:00:20.5]} 25. Bxf7+ {[%clk
0:02:03.3]} 25... Kxf7 {[%clk 0:00:21.4]} 26. Qc4+ {[%clk 0:02:04.2]} 26... d5
{[%clk 0:00:07.8]} 27. Rxd5 {[%clk 0:02:03.9]} 27... Qa5 {[%clk 0:00:04.9]} 28.
Rd8+ {[%clk 0:01:39.3]} 28... e6 {[%clk 0:00:02.5]} 29. Rxc8 {[%clk 0:01:39.7]}
29... Rxc8 {[%clk 0:00:02.6]} 30. Qxe6+ {[%clk 0:01:40]} 30... Kf8 {[%clk
0:00:03.2]} 31. Be7+ {[%clk 0:01:40.7]} 31... Ke8 {[%clk 0:00:02.8]} 32. Bd6+
{[%clk 0:01:41.1]} 32... Kd8 {[%clk 0:00:02.6]} 33. Qe7# {[%clk 0:01:42]} 1-0

[Event "*** Titled Tuesday Blitz"]
[Site "Chess.com"]
[Date "2021.02.02"]
[Round "3"]
[White "Kapitan_Bayan"]
[Black "Caracternin123"]
[Result "1-0"]
[WhiteElo "2445"]
[BlackElo "2667"]
[TimeControl "180+1"]
[EndTime "10:29:50 PST"]
[Termination "Kapitan_Bayan won by resignation"]

1. d4 {[%clk 0:03:00.9]} 1... d5 {[%clk 0:02:59.4]} 2. c4 {[%clk 0:03:01.1]}
2... e6 {[%clk 0:02:59.8]} 3. Nc3 {[%clk 0:02:59.1]} 3... a6 {[%clk 0:03:00.2]}
4. cxd5 {[%clk 0:02:58.3]} 4... exd5 {[%clk 0:03:01.1]} 5. Bf4 {[%clk 0:02:57]}
5... Nf6 {[%clk 0:03:00.7]} 6. e3 {[%clk 0:02:56.5]} 6... Bd6 {[%clk 0:03:01]}
7. Nge2 {[%clk 0:02:55.1]} 7... Bxf4 {[%clk 0:02:59.5]} 8. Nxf4 {[%clk
0:02:54.9]} 8... O-O {[%clk 0:02:59.1]} 9. Bd3 {[%clk 0:02:52.4]} 9... c6 {[%clk
0:02:58.1]} 10. O-O {[%clk 0:02:50.6]} 10... Nbd7 {[%clk 0:02:57.8]} 11. b4
{[%clk 0:02:49]} 11... Re8 {[%clk 0:02:29.9]} 12. a4 {[%clk 0:02:48.2]} 12...
Nb6 {[%clk 0:02:29]} 13. b5 {[%clk 0:02:36.3]} 13... cxb5 {[%clk 0:01:54.1]} 14.
axb5 {[%clk 0:02:37.2]} 14... a5 {[%clk 0:01:55]} 15. Qb3 {[%clk 0:02:20.2]}
15... Be6 {[%clk 0:01:49.1]} 16. Rfc1 {[%clk 0:02:05.5]} 16... Qd6 {[%clk
0:01:36.6]} 17. Na4 {[%clk 0:01:50.6]} 17... Nxa4 {[%clk 0:01:32.2]} 18. Rxa4
{[%clk 0:01:51.5]} 18... Nd7 {[%clk 0:01:16.2]} 19. Qc2 {[%clk 0:01:35.8]} 19...
Nb6 {[%clk 0:01:14.5]} 20. Raa1 {[%clk 0:01:23.8]} 20... Rec8 {[%clk 0:00:57.8]}
21. Qe2 {[%clk 0:01:21.9]} 21... a4 {[%clk 0:00:53.8]} 22. Qh5 {[%clk
0:01:11.9]} 22... g6 {[%clk 0:00:53.8]} 23. Qh6 {[%clk 0:01:12.1]} 23... Bd7
{[%clk 0:00:50.3]} 24. Nh5 {[%clk 0:01:04.1]} 1-0